{"text_format":"3","workbook":"xlsx","n_sheets":4,"sheets":["selecteer hier uw dessertbuffet","matrixen","Algemene verkoopsvoorwaarden","Reservatievoorstel"],"not_rendered":{"macros":1,"external_links":1,"defined_names":5},"read":"whole","date_system":"1900"}

{"sheet":"selecteer hier uw dessertbuffet","index":0,"n_rows":71,"n_cols":38,"rows_kept":71,"merged":[[12,6,12,10],[13,6,13,10],[14,6,14,10],[15,6,15,10],[16,6,16,10],[17,6,17,10],[18,6,18,10],[19,6,19,10],[20,6,20,10],[21,6,21,10],[22,6,22,10],[56,10,56,17],[57,10,57,24]]}
[null,"Deze info is van: Feestzaal Katelijnenhof, Heirweg 172, 8800 Roeselare. Contacteer de zaakvoerder: 0475/618058 - info@katelijnenhof.be - web: www.katelijnenhof.be met foto's en volledige prijslijst."]
[]
[null,{"$f":"\"Rekenmodule dessertbuffet. \"&matrixen!B1","v":"Rekenmodule dessertbuffet. Prijzen geldig tot 31/03/2023"}]
[]
[{"$nulls":5},"kinderen",null,"kinderen",null,"kinderen"]
[{"$nulls":3},{"$f":"IF(TODAY()>AA11,\"Deze module is niet meer geldig.\",\"\")","v":""},null," 0 t.e.m. 2 j. 11 maand",null,"3 j. t.e.m. 5 j. 11 maand",null,"6 j, t.e.m. 11 jr. 11 maand"]
[null,"Totaal per volwassene:",null,{"$f":"SUM(D10:D976)","v":{"v":21.5,"d":"21.50"}},null,"0,00",null,{"$f":"ROUND(D7/3,2)","v":7.17},null,{"$f":"ROUND(D7/2,3)","v":10.75}]
[{"$nulls":5},"U kan ook voor de kinderen een kindermenu nemen ( zie een andere rekenmodule)"]
[]
[null,"MAAK STEEDS UW KEUZE in de gele vakken: (scroll naar beneden om meer gegevens in te vullen) Hierboven kunt u uw prijs volgen.",{"$nulls":6},"U vindt verder een overzicht van uw selectie"]
[null,"(klik op de gele balk, vervolgens op het pijltje rechts en scroll ev. naar beneden)",null,"prijs pp",null,"Gedetailleerde info","Selecteer hier uw hapjes:",null,{"$f":"COUNTA(G13:K23)","v":0},"hapjes geselecteerd.",{"$nulls":16},{"$f":"matrixen!B1","v":"Prijzen geldig tot 31/03/2023"}]
[]
[null,"Maak in dit vak uw keuze voor het aperitief",null,{"$f":"VLOOKUP(B13,matrixen!B11:I19,8,FALSE)","v":{"v":0,"d":"0.00"}},null,{"$f":"HLOOKUP($B$13,matrixen!$T$14:$AB$28,2,FALSE)","v":0},{"$nulls":20},{"$f":"matrixen!B11","v":"Maak in dit vak uw keuze voor het aperitief"}]
[null,"Maak in dit vak uw keuze voor het aperitief",{"$nulls":3},{"$f":"HLOOKUP($B$13,matrixen!$T$14:$AB$28,3,FALSE)","v":0},{"$nulls":20},{"$f":"matrixen!B12","v":"1 aperitief per persoon"}]
[null,{"$f":"\"U selecteerde tot nu \" & COUNTA(G13:K23)+IF(G24<>\"\",1,0)& \" hapjes.\"","v":"U selecteerde tot nu 0 hapjes."},null,{"$f":"IF(IF(B13=matrixen!N14,(I11-4)*matrixen!I47,I11*matrixen!I47)<0,0,IF(B13=matrixen!N14,(I11-4)*matrixen!I47,I11*matrixen!I47))","v":{"v":0,"d":"0.00"}},null,{"$f":"HLOOKUP($B$13,matrixen!$T$14:$AB$28,4,FALSE)","v":0},{"$nulls":20},{"$f":"matrixen!B13","v":"2 aperitieven per persoon"}]
[{"$nulls":5},{"$f":"HLOOKUP($B$13,matrixen!$T$14:$AB$28,5,FALSE)","v":0},{"$nulls":20},{"$f":"matrixen!B14","v":"Receptie E"},{"$nulls":10},{"$f":"matrixen!AM16","v":"BORD"}]
[{"$nulls":5},{"$f":"HLOOKUP($B$13,matrixen!$T$14:$AB$28,6,FALSE)","v":0},{"$nulls":20},{"$f":"matrixen!B15","v":"Receptie A"},{"$nulls":10},{"$f":"matrixen!AM17","v":"Bord met rauwe groenten en cocktailsaus (wortel, bloemkool, radijs)"}]
[{"$nulls":5},{"$f":"HLOOKUP($B$13,matrixen!$T$14:$AB$28,7,FALSE)","v":0},{"$nulls":20},{"$f":"matrixen!B16","v":0},{"$nulls":10},{"$f":"matrixen!AM18","v":"Bord met olijven, kaasjes en salamietjes"}]
[null,"Indien een genodigde een extra aperitief bestelt of een aperitief wenst die niet in de prijs begrepen is dan:",{"$nulls":3},{"$f":"HLOOKUP($B$13,matrixen!$T$14:$AB$28,8,FALSE)","v":0},{"$nulls":20},{"$f":"matrixen!B17","v":0},{"$nulls":10},{"$f":"matrixen!AM19","v":"Bord met 3 tapenades (tonijn / pesto spread rosso /zoete peper roomkaas)"}]
[null,"De gast die niet inbegrepen aperitief bestelt betaalt deze zelf (vb: sterke drank)",{"$nulls":3},{"$f":"HLOOKUP($B$13,matrixen!$T$14:$AB$28,9,FALSE)","v":0},{"$nulls":20},{"$f":"matrixen!B18","v":0},{"$nulls":10},{"$f":"matrixen!AM20","v":"KOUD"}]
[null,{"$f":"B22","v":"De gast die niet inbegrepen aperitief bestelt betaalt deze zelf (vb: sterke drank)"},{"$nulls":3},{"$f":"HLOOKUP($B$13,matrixen!$T$14:$AB$28,10,FALSE)","v":0},{"$nulls":20},{"$f":"matrixen!B19","v":0},{"$nulls":10},{"$f":"matrixen!AM21","v":"crunchy sushi"}]
[null,"De gast die niet inbegrepen aperitief bestelt betaalt deze zelf (vb: sterke drank)",{"$nulls":3},{"$f":"HLOOKUP($B$13,matrixen!$T$14:$AB$28,11,FALSE)","v":0},{"$nulls":31},{"$f":"matrixen!AM22","v":"luzerne met gerookte zalm, eitjes van vliegende vis in wasabi"}]
[null,"Alle extra aperitief komt op één rekening",{"$nulls":3},{"$f":"HLOOKUP($B$13,matrixen!$T$14:$AB$28,12,FALSE)","v":0},{"$nulls":20},{"$f":"matrixen!B23","v":"Schuimwijn van het huis (reeds inbegrepen)"},{"$nulls":10},{"$f":"matrixen!AM23","v":"preischeuten met tijgergarnalen en mini tomaat"}]
[{"$nulls":5},{"$f":"HLOOKUP($B$13,matrixen!$T$14:$AB$28,13,FALSE)","v":0},{"$f":"IF(F20=\"tapenades\", matrixen!AM28 & \" nootjes en chips\",\"\")","v":""},{"$nulls":19},{"$f":"matrixen!B24","v":"Cava"},{"$nulls":10},{"$f":"matrixen!AM24","v":"aperoglaasje parmaham met meloenbolletjes"}]
[{"$nulls":5},{"$f":"HLOOKUP($B$13,matrixen!$T$14:$AB$28,14,FALSE)","v":0},{"$nulls":20},{"$f":"matrixen!B25","v":"Champagne"},{"$nulls":10},{"$f":"matrixen!AM25","v":"ganache van foie gras met frambozenconfituur en amandelbrood"}]
[{"$nulls":5},{"$f":"HLOOKUP($B$13,matrixen!$T$14:$AB$28,15,FALSE)","v":0},null,{"$f":"HLOOKUP($B$13,matrixen!$T$14:$AB$28,15,FALSE)","v":0},{"$nulls":18},{"$f":"matrixen!B26","v":0},{"$nulls":10},{"$f":"matrixen!AM26","v":"aperoglaasje parmaham met espuma van mango"}]
[{"$nulls":37},{"$f":"matrixen!AM27","v":"verse oester"}]
[null,"Dessertbuffet",{"$nulls":35},{"$f":"matrixen!AM28","v":"Taboulé met gerookte forel"}]
[{"$nulls":5},"extra info",{"$nulls":20},{"$f":"matrixen!B44","v":"Maak hier uw keuze voor extra hapjes bij het aperitief"},{"$nulls":10},{"$f":"matrixen!AM29","v":"Haringhapje met curry"}]
[{"$nulls":26},{"$f":"matrixen!B45","v":"Nootjes, chips en zoutkoekjes zoveel u wenst,  per pers."},{"$nulls":10},{"$f":"matrixen!AM30","v":"Mini bagel met zalm en kruidenkaas"}]
[null,"Uitgebreid dessertbuffet  (niet voorafgegaan door een maaltijd)",null,{"$f":"VLOOKUP(B31,dessert,8,FALSE)","v":{"v":21.5,"d":"21.50"}},null,{"$f":"VLOOKUP($B$31,dessert,10,FALSE)","v":"vers fruit, verschillende soorten sorbet, chocolademousse, roomijs"},{"$nulls":20},{"$f":"matrixen!B46","v":"Rauwe groenten (wortel, bloemkool, cocktailsaus) prijs per persoon:"},{"$nulls":10},{"$f":"matrixen!AM31","v":"SOEP"}]
[null,"Dranken niet inbegrepen.",null,{"$f":"SUM(C49:C52)","v":{"v":0,"d":"0.00"}},null,{"$f":"VLOOKUP($B$31,dessert,11,FALSE)","v":"variatie van miserable, javanais, pasteis de nata, roomsoes, speculoostaart,"},{"$nulls":20},{"$f":"matrixen!B47","v":"Warme toostjes per stuk"},{"$nulls":10},{"$f":"matrixen!AM32","v":"Kreeftensoep"}]
[{"$nulls":5},{"$f":"VLOOKUP($B$31,dessert,12,FALSE)","v":"De samenstelling van het buffet kan verschillen, naargelang de grootte van de groep"},{"$nulls":20},{"$f":"matrixen!B48","v":"Koude toostjes per stuk"},{"$nulls":10},{"$f":"matrixen!AM33","v":"Aspergeroomsoep met koornbloemblaadjes"}]
[null,"Selecteer hier uw koffie",{"$nulls":3},{"$f":"VLOOKUP($B$31,dessert,13,FALSE)","v":"assortiment van mini-bavarois (framboos-passie-zwarte woud-pistache-chocolade praliné)"},{"$nulls":20},{"$f":"matrixen!B49","v":"aperitiefglaasjes per stuk"},{"$nulls":10},{"$f":"matrixen!AM34","v":"Pompoensoep (sept. okt. nov.)"}]
[null,"Nog geen keuze gemaakt",null,{"$f":"VLOOKUP(B35,matrixen!B75:I78,8,FALSE)","v":{"v":0,"d":"0.00"}},null,{"$f":"VLOOKUP($B$31,dessert,14,FALSE)","v":0},{"$nulls":20},{"$f":"matrixen!B50","v":"Oesters per stuk warm of koud"},{"$nulls":10},{"$f":"matrixen!AM35","v":"Kervelroomsoep met gerookte eend"}]
[null,"Nog geen keuze gemaakt",{"$nulls":24},{"$f":"matrixen!B51","v":"wachtbordje met vispasteitje"},{"$nulls":10},{"$f":"matrixen!AM36","v":"Preiroomsoep met broccoligarnituur en gebakken spekjes"}]
[null,"Alle drank na het dessertbuffet komt op één rekening en wordt door de organisator van het feest betaald",null,{"$f":"VLOOKUP($B$37,matrixen!$A$80:$P$82,15,FALSE)","v":{"v":0,"d":"0.00"}},{"$f":"VLOOKUP($B$37,matrixen!$A$80:$P$82,16,FALSE)","v":"één rekening"},{"$nulls":4},{"$f":"\"Wenst u exclusiviteit voor het volledige domein mits meerprijs van € \" &matrixen!F222& \" ? \"","v":"Wenst u exclusiviteit voor het volledige domein mits meerprijs van € 750 ? "},"nee",{"$f":"IF(K37=\"ja\",matrixen!F222,0)","v":0},{"$nulls":14},{"$f":"matrixen!B52","v":"wachtbordje van reuzentoost met gerookte zalm"},{"$nulls":10},{"$f":"matrixen!AM37","v":"Soepje van boschampignons met gerookte paling"}]
[null,"Alle drank na het dessertbuffet komt op één rekening en wordt door de organisator van het feest betaald",{"$nulls":24},{"$f":"matrixen!B53","v":"wachtbordje van lauw slaatje met gerookte zalm en scampi's"},{"$nulls":10},{"$f":"matrixen!AM38","v":"WARM"}]
[{"$nulls":5},"Feest met discobar: ","nee","Allergenen:","nee",{"$f":"IF($I$39=\"ja\",matrixen!A86,\"\")","v":""},{"$nulls":16},{"$f":"matrixen!B54","v":0},{"$nulls":10},{"$f":"matrixen!AM39","v":"mini hot-dog"}]
[null,"Om uw selecties te bewaren, gelieve ze op te slaan op uw harde schijf. (opslaan als)",{"$nulls":4},"Keuze achtergrondmuziek:","Geen voorkeur",null,{"$f":"IF($I$39=\"ja\",matrixen!A87,\"\")","v":""},{"$nulls":16},{"$f":"matrixen!B55","v":0},{"$nulls":10},{"$f":"matrixen!AM40","v":"Breydelspek met mosterdroomsaus"}]
[{"$nulls":7},{"$f":"IF(G39=\"ja\",matrixen!A90,\"\")","v":""},null,{"$f":"IF($I$39=\"ja\",matrixen!A88,\"\")","v":""},{"$nulls":27},{"$f":"matrixen!AM41","v":"aperoglaasje scampi"}]
[null,"Om een aanvraag naar ons te versturen stuur een mail naar info@katelijnenhof met in bijlage dit bestand vanaf uw harde schijf.",{"$nulls":24},{"$f":"matrixen!B75","v":"Nog geen keuze gemaakt"},{"$nulls":10},{"$f":"matrixen!AM42","v":"Warme dagvis met curry"}]
[{"$nulls":4},"Eventuele datum van het feest:",null,null,"Overzicht van uw selectie:",{"$nulls":18},{"$f":"matrixen!B76","v":"Koffie 3 X bediend"},{"$nulls":10},{"$f":"matrixen!AM43","v":"een gevuld toastcupje"}]
[{"$nulls":5},"Het exacte aantal personen en de tafelschikking dient ons meegedeeld te worden de vrijdag van het weekend voordien.",null,{"$f":"IF(L44>0,B13,\"\")","v":""},{"$nulls":3},{"$f":"D13","v":{"v":0,"d":"0.00"}},{"$nulls":14},{"$f":"matrixen!B77","v":"Koffie 3 X bediend met koekjes"},{"$nulls":10},{"$f":"matrixen!AM44","v":"oester met champagnesaus "}]
[{"$nulls":4},"geraamd aantal volwassenen:",null,null,{"$f":"IF(L45>0,B61,\"\")","v":""},{"$f":"IF(L45>0,\"geldt alleen bij recepties!!!\",\"\")","v":""},null,null,{"$f":"D61","v":{"v":0,"d":"0.00"}},{"$nulls":14},{"$f":"matrixen!B78","v":"Koffie 3 X bediend met pralines"},{"$nulls":10},{"$f":"matrixen!AM45","v":"garnaal in filo"}]
[{"$nulls":4},"geraamd aantal kinderen 6 j. t.e.m. 11 jr. 11 maand:",null,null,{"$f":"IF(L46>0,B66,\"\")","v":""},{"$nulls":3},{"$f":"D66","v":{"v":0,"d":"0.00"}},{"$nulls":14},{"$f":"matrixen!B79","v":0},{"$nulls":10},{"$f":"matrixen!AM46","v":"mini croque"}]
[{"$nulls":4},"geraamd aantal kinderen 3 j. t.e.m. 5 j. 11 maand:",null,null,{"$f":"IF(L47>0,B67,\"\")","v":""},{"$nulls":3},{"$f":"D67","v":{"v":0,"d":"0.00"}}]
["      Late night snacks:",{"$nulls":3},"geraamd aantal kinderen  0 t.e.m. 2 j. 11 maand:",null,null,{"$f":"IF(L48>0,B68,\"\")","v":""},{"$nulls":3},{"$f":"D68","v":{"v":0,"d":"0.00"}},{"$nulls":14},{"$f":"matrixen!A80","v":"Alle drank na het dessertbuffet komt op één rekening en wordt door de organisator van het feest betaald"}]
[null,null,{"$f":"IFERROR(VLOOKUP(B49,matrixen!$A$301:$E$305,5,FALSE),0)","v":0},null,"uur van aankomst:",null,null,{"$f":"IF(L49>0,B69,\"\")","v":""},{"$nulls":3},{"$f":"D69","v":{"v":0,"d":"0.00"}},{"$nulls":14},{"$f":"matrixen!A81","v":"Elke gast die na het dessertbuffet een drankje bestelt rekent direct af aan de bar"}]
[null,null,{"$f":"IFERROR(VLOOKUP(B50,matrixen!$A$301:$E$305,5,FALSE),0)","v":0},null,"aan tafel om:",null,null,{"$f":"IF(L50>0,B70,\"\")","v":""},{"$nulls":3},{"$f":"D70","v":{"v":0,"d":"0.00"}},{"$nulls":14},{"$f":"matrixen!A82","v":"Forfait voor drank naar believen (alle bieren en frisdranken van de drankkaart in de zaal) na het buffet. pp: "}]
[null,null,{"$f":"IFERROR(VLOOKUP(B51,matrixen!$A$301:$E$305,5,FALSE),0)","v":0},null,"Uw naam:",null,null,{"$f":"B31","v":"Uitgebreid dessertbuffet  (niet voorafgegaan door een maaltijd)"},{"$nulls":3},{"$f":"D31","v":{"v":21.5,"d":"21.50"}}]
[null,null,{"$f":"IFERROR(VLOOKUP(B52,matrixen!$A$301:$E$305,5,FALSE),0)","v":0},null,"Adres:",null,null,{"$f":"IF(L52>0,B35,\"\")","v":""},{"$nulls":3},{"$f":"D35","v":{"v":0,"d":"0.00"}},{"$nulls":14},{"$f":"matrixen!A108","v":"ja"}]
[null,"Keuze mogelijkheden:",null,null,"Stad:",null,null,{"$f":"B37","v":"Alle drank na het dessertbuffet komt op één rekening en wordt door de organisator van het feest betaald"},{"$nulls":3},{"$f":"E37","v":"één rekening"},{"$nulls":14},{"$f":"matrixen!A109","v":"nee"}]
[null,{"$f":"matrixen!A301 & \" aan \" &matrixen!E301 & \" euro\"","v":"Croque uit het vuistje aan 2,8 euro"},null,null,"Tel nr:",{"$nulls":21},"geen voorkeur"]
[null,{"$f":"matrixen!A302 & \" aan \" &matrixen!E302 & \" euro\"","v":"Pizza Margherita aan 4,5 euro"},null,null,"email:",{"$nulls":21},"zoveel mogelijk ronde tafels van 6 à 8 personen"]
[null,{"$f":"matrixen!A303 & \" aan \" &matrixen!E303 & \" euro\"","v":"Belegde broodjes (2 pp) aan 4,5 euro"},null,null,"reden feest:",null,null,"Gaat u akkoord met de algemene verkoopsvoorwaarden?",null,null,"ja",{"$nulls":15},"liever lange tafels ev. In U-vorm of H-vorm."]
[null,{"$f":"matrixen!A304 & \" aan \" &matrixen!E304 & \" euro\"","v":"Braadworst aan 3 euro"},null,null,"Opmerking:",{"$nulls":4},"Voorkeur tafelschikking:","geen voorkeur"]
[null,{"$f":"matrixen!A305 & \" aan \" &matrixen!E305 & \" euro\"","v":"Scampi (3pp) Nantua met farfale en broccoli aan 4,5 euro"},null,null,"geraamde totalen uit andere rekenbladen:",{"$nulls":4},"Wijze van betaling:","Betaling op de dag zelf (cash of bancontact), u bekomt 2% korting op het totaal"]
[null,"Mogelijke supplementen bij de recepties",null,null,"(vb: kindermenus)",{"$nulls":4},"Wenst u een factuur?","nee",{"$nulls":15},{"$f":"matrixen!A380","v":"Betaling op de dag zelf (cash of bancontact), u bekomt 2% korting op het totaal"}]
[{"$nulls":10},{"$f":"IF(K59=\"ja\",\"Gelieve uw facturatiegegevens bij opmerkingen in te vullen.\",\"\")","v":""},{"$nulls":15},{"$f":"matrixen!A381","v":"Storting op BE 48 4631 1391 2127 min. 7 dagen voor het feest, 2% korting"}]
[null,"Schuimwijn van het huis (reeds inbegrepen)",null,{"$f":"VLOOKUP(B61,matrixen!B23:I26,8,FALSE)","v":{"v":0,"d":"0.00"}},null,null,"Geschat factuurtotaal:",{"$f":"Reservatievoorstel!I13","v":{"v":0,"d":"€ 0.00"}},null,null,"korting bij contante betaling: ",{"$f":"H61*0.02","v":{"v":0,"d":"€ 0.00"}},{"$nulls":14},{"$f":"matrixen!A382","v":"Betaling na het feest. Gelieve 40 % voorschot te storten op BE48 4631 1391 2127. Geen korting."}]
[null,"Schuimwijn van het huis (reeds inbegrepen)",{"$nulls":5},"(Gebaseerd op de door u ingebrachte gegevens)",null,null,"saldo:",{"$f":"H61-L61","v":{"v":0,"d":"€ 0.00"}}]
[{"$nulls":4},{"$f":"SUMIF(B66:B70,\"warme toostjes per stuk\",D66:D70)","v":0},{"$f":"IF($E$63>0,matrixen!B58,\"\")","v":""},{"$f":"SUMIF(B66:B70,\"koude toostjes per stuk\",D66:D70)","v":0},{"$f":"IF($G$63>0,matrixen!E58,\"\")","v":""},{"$f":"SUMIF(B66:B70,\"aperitiefglaasjes per stuk\",D66:D70)","v":0},{"$f":"IF($I$63>0,matrixen!H58,\"\")","v":""},{"$nulls":16},{"$f":"matrixen!B68","v":"Basis dessertbuffet (niet voorafgegaan door een maaltijd)"}]
[{"$nulls":5},{"$f":"IF($E$63>0,matrixen!B59,\"\")","v":""},null,{"$f":"IF($G$63>0,matrixen!E59,\"\")","v":""},null,{"$f":"IF($I$63>0,matrixen!H59,\"\")","v":""},{"$nulls":16},{"$f":"matrixen!B69","v":"Uitgebreid dessertbuffet  (niet voorafgegaan door een maaltijd)"}]
[{"$nulls":5},{"$f":"IF($E$63>0,matrixen!B60,\"\")","v":""},null,{"$f":"IF($G$63>0,matrixen!E60,\"\")","v":""},null,{"$f":"IF($I$63>0,matrixen!H60,\"\")","v":""},{"$nulls":16},{"$f":"matrixen!B70","v":"Uitgebreid en luxueus dessertbuffet  (niet voorafgegaan door een maaltijd)"}]
[{"$nulls":5},{"$f":"IF($E$63>0,matrixen!B61,\"\")","v":""},null,{"$f":"IF($G$63>0,matrixen!E61,\"\")","v":""},null,{"$f":"IF($I$63>0,matrixen!H61,\"\")","v":""}]
[{"$nulls":5},{"$f":"IF($E$63>0,matrixen!B62,\"\")","v":""},null,{"$f":"IF($G$63>0,matrixen!E62,\"\")","v":""},null,{"$f":"IF($I$63>0,matrixen!H62,\"\")","v":""}]
[{"$nulls":5},{"$f":"IF($E$63>0,matrixen!B63,\"\")","v":""},null,{"$f":"IF($G$63>0,matrixen!E63,\"\")","v":""},null,{"$f":"IF($I$63>0,matrixen!H63,\"\")","v":""}]
[{"$nulls":5},{"$f":"IF($E$63>0,matrixen!B64,\"\")","v":""},null,{"$f":"IF($G$63>0,matrixen!E64,\"\")","v":""}]
[]
[null,"Maak hier uw keuze voor extra hapjes bij het aperitief"]

{"sheet":"matrixen","index":1,"n_rows":523,"n_cols":39,"rows_kept":523,"hidden":true}
[null,"Prijzen geldig tot 31/03/2023",{"$nulls":9},"lam, zwanen enz..  . Met foto suppl.",{"$nulls":3},15]
[{"$nulls":11},"Foto op de taart: suppl. € ",null,null,1,"per stuk taart en € ",null,12," per foto"]
[null,"minimaal verbruik:",null,null,1250]
{"$rows_empty":7}
[null,"Maak in dit vak uw keuze voor het aperitief"]
[null,"1 aperitief per persoon",{"$nulls":6},{"v":6,"d":"€ 6.00"}]
[null,"2 aperitieven per persoon",{"$nulls":6},{"v":12,"d":"€ 12.00"}]
[null,"Receptie E",{"$nulls":6},{"v":12.600000000000001,"d":"€ 12.60"},null,"Maak in dit vak uw keuze voor het aperitief","1 aperitief per persoon","2 aperitieven per persoon","Receptie E","Receptie A",0,0,0,0,"Maak in dit vak uw keuze voor het aperitief","1 aperitief per persoon","2 aperitieven per persoon",0,"Receptie E",0,0,0,"Receptie A"]
[null,"Receptie A",{"$nulls":6},{"v":10,"d":"€ 10.00"},null,null,"1 per persoon,  ","2 per persoon,  ","Uitgebreide receptie","Basis receptie.",0,0,0,0,null,"vrije keuze","vrije keuze",0,"dranken inbegrepen",0,0,0,"dranken inbegrepen",{"$nulls":10},"Keuze aperitiefhapjes:"]
[null,0,{"$nulls":6},{"v":0,"d":"€ 0.00"},null,null,"eventueel tweede wordt","eventueel derde wordt","met 4 aperitiefglaasjes","Dranken 2 uur inbegrepen.",0,0,0,0,null,"Porto rood","Porto rood",0,"gedurende 2 uur",0,0,0,"gedurende 2 uur",{"$nulls":10},"BORD"]
[null,0,{"$nulls":6},{"v":0,"d":"€ 0.00"},null,null,"direct afgerekend of","direct afgerekend of"," en drank gedurende 2 uur.","Met tapenades:",null,0,0,null,null,"Martini","Martini",0,"met huis schuimwijn,",0,0,0,"met huis schuimwijn,",{"$nulls":10},"Bord met rauwe groenten en cocktailsaus (wortel, bloemkool, radijs)"]
[null,0,{"$nulls":6},{"v":0,"d":"€ 0.00"},null,null,"komt op 1 rekening","komt op 1 rekening",0,"tonijn / pesto spread rosso /zoete peper roomkaas",null,0,{"$nulls":3},"Kir","Kir",0,"frisdranken en",0,0,0,"frisdranken en",{"$nulls":10},"Bord met olijven, kaasjes en salamietjes"]
[null,0,{"$nulls":6},{"v":0,"d":"€ 0.00"},{"$nulls":5},0,{"$nulls":5},"Frisdrank","Frisdrank",0,"bieren naar believen.",null,0,0,"bieren naar believen.",{"$nulls":10},"Bord met 3 tapenades (tonijn / pesto spread rosso /zoete peper roomkaas)"]
[{"$nulls":14},0,{"$nulls":5},"Bieren","Bieren",0,0,null,0,0,0,{"$nulls":10},"KOUD"]
[{"$nulls":14},0,{"$nulls":5},"nootjes en chips inbegr.","nootjes en chips inbegr.",0,"Assortiment van 4  ",null,0,0,"Ook inbegrepen:",{"$nulls":10},"crunchy sushi"]
[{"$nulls":14},0,{"$nulls":5},"TIP:","TIP:",0,"aperitiefglaasjes",null,0,0,"tapenades",{"$nulls":10},"luzerne met gerookte zalm, eitjes van vliegende vis in wasabi"]
[null,"Schuimwijn van het huis (reeds inbegrepen)",{"$nulls":6},{"v":0,"d":"€ 0.00"},{"$nulls":5},0,{"$nulls":5},"Receptie A","Receptie A",0,"inbegrepen.",null,0,0,"nootjes en chips",{"$nulls":10},"preischeuten met tijgergarnalen en mini tomaat"]
[null,"Cava",{"$nulls":6},{"v":3.5,"d":"€ 3.50"},{"$nulls":5},0,{"$nulls":5},"kost evenveel als","kost evenveel als",0,"Maak uw keuze",null,0,0,0,{"$nulls":10},"aperoglaasje parmaham met meloenbolletjes"]
[null,"Champagne",{"$nulls":6},{"v":7,"d":"€ 7.00"},{"$nulls":11},"2 aperitieven pp.","2 aperitieven pp.",0,"hier rechts! =>",null,0,0,0,{"$nulls":10},"ganache van foie gras met frambozenconfituur en amandelbrood"]
[{"$nulls":20},"En dan is de drank naar","En dan is de drank naar",0,0,null,0,0,0,{"$nulls":10},"aperoglaasje parmaham met espuma van mango"]
[{"$nulls":20},"believen!","believen!",0,"Liever meer dan 4 hapjes? Geen probleem.",null,0,0,0,{"$nulls":10},"verse oester"]
[{"$nulls":20},"En met tapenades!","En met tapenades!",0,"Het supplement bedraagt € 1,60 per hapje",null,0,0,{"$nulls":11},"Taboulé met gerookte forel"]
[{"$nulls":38},"Haringhapje met curry"]
[{"$nulls":38},"Mini bagel met zalm en kruidenkaas"]
[{"$nulls":38},"SOEP"]
[{"$nulls":38},"Kreeftensoep"]
[{"$nulls":38},"Aspergeroomsoep met koornbloemblaadjes"]
[null,"1 aperitief per persoon, vrije keuze",{"$nulls":6},{"v":6,"d":"€ 6.00"},{"$nulls":29},"Pompoensoep (sept. okt. nov.)"]
[null,"Pineau des charentes wit",{"$nulls":6},{"v":6,"d":"€ 6.00"},{"$nulls":29},"Kervelroomsoep met gerookte eend"]
[null,"Maison (basis safari)",{"$nulls":6},{"v":6,"d":"€ 6.00"},{"$nulls":29},"Preiroomsoep met broccoligarnituur en gebakken spekjes"]
[null,"Kir royale",{"$nulls":6},{"v":6,"d":"€ 6.00"},{"$nulls":29},"Soepje van boschampignons met gerookte paling"]
[null,"Sherry dry",{"$nulls":6},{"v":6,"d":"€ 6.00"},{"$nulls":29},"WARM"]
[null,"Porto",{"$nulls":6},{"v":6,"d":"€ 6.00"},{"$nulls":29},"mini hot-dog"]
[null,"Martini (wit/rood)",{"$nulls":6},{"v":6,"d":"€ 6.00"},{"$nulls":29},"Breydelspek met mosterdroomsaus"]
[null,"Kir",{"$nulls":6},{"v":6,"d":"€ 6.00"},{"$nulls":29},"aperoglaasje scampi"]
[null,"Schuimwijn",{"$nulls":6},{"v":6,"d":"€ 6.00"},{"$nulls":29},"Warme dagvis met curry"]
[{"$nulls":38},"een gevuld toastcupje"]
[null,"Maak hier uw keuze voor extra hapjes bij het aperitief",{"$nulls":36},"oester met champagnesaus "]
[null,"Nootjes, chips en zoutkoekjes zoveel u wenst,  per pers.",{"$nulls":6},"gratis",{"$nulls":29},"garnaal in filo"]
[null,"Rauwe groenten (wortel, bloemkool, cocktailsaus) prijs per persoon:",{"$nulls":6},{"v":1.6,"d":"€ 1.60"},{"$nulls":29},"mini croque"]
[null,"Warme toostjes per stuk",{"$nulls":6},{"v":1.6,"d":"€ 1.60"},"waarden nodig!",{"$nulls":28},"mini loempia"]
[null,"Koude toostjes per stuk",{"$nulls":6},{"v":1.6,"d":"€ 1.60"},{"$nulls":29},"mini kippenboutje"]
[null,"aperitiefglaasjes per stuk",{"$nulls":6},{"v":1.6,"d":"€ 1.60"},{"$nulls":29},"Gepaneerde garnalen butterfly"]
[null,"Oesters per stuk warm of koud",{"$nulls":6},"fini",{"$nulls":29},"DESSERT"]
[null,"wachtbordje met vispasteitje",{"$nulls":6},{"v":4,"d":"€ 4.00"}]
[null,"wachtbordje van reuzentoost met gerookte zalm",{"$nulls":6},{"v":4,"d":"€ 4.00"}]
[null,"wachtbordje van lauw slaatje met gerookte zalm en scampi's",{"$nulls":6},{"v":6,"d":"€ 6.00"}]
[]
[]
[]
[]
[null,"Keuze warme toostjes",null,null,"Keuze koude toostjes",null,null,"Keuze aperoglaasjes"]
[null,"(bij reservatie te bepalen)",null,null,"(bij reservatie te bepalen)",null,null,"(bij reservatie te bepalen)"]
[null,"kippenbilletjes",null,null,"toost garnaal koud",null,null,"aperoglaasje eendenmousse"]
[null,"toostcupje",null,null,"toost gerookte zalm koud",null,null,"aperoglaasje gerookte zalm"]
[null,"garnaal in filo",null,null,"toost krabsla koud",null,null,"aperoglaasje mousse van krab"]
[null,"mini croque",null,null,"toost eendenpastei koud",null,null,"aperoglaasje tomaat / garnaal"]
[null,"scampi enz….",{"$nulls":5},"en nog veel mogelijkheden"]
[]
[]
[]
[null,"Basis dessertbuffet (niet voorafgegaan door een maaltijd)",{"$nulls":6},18,null,"vers fruit, verschillende soorten sorbet, chocolademousse, roomijs","variatie van miserable, javanais, pasteis de nata, roomsoes, speculoostaart,","De samenstelling van het buffet kan verschillen, naargelang de grootte van de groep"]
[null,"Uitgebreid dessertbuffet  (niet voorafgegaan door een maaltijd)",{"$nulls":6},21.5,null,"vers fruit, verschillende soorten sorbet, chocolademousse, roomijs","variatie van miserable, javanais, pasteis de nata, roomsoes, speculoostaart,","De samenstelling van het buffet kan verschillen, naargelang de grootte van de groep","assortiment van mini-bavarois (framboos-passie-zwarte woud-pistache-chocolade praliné)"]
[null,"Uitgebreid en luxueus dessertbuffet  (niet voorafgegaan door een maaltijd)",{"$nulls":6},25,null,"vers fruit, verschillende soorten sorbet, chocolademousse, roomijs","variatie van miserable, javanais, pasteis de nata, roomsoes, speculoostaart,","De samenstelling van het buffet kan verschillen, naargelang de grootte van de groep","assortiment van mini-bavarois (framboos-passie-zwarte woud-pistache-chocolade praliné)","dessertglaasjes (framboos-amandel - trio chocolade - mango-caramel - chocolade praliné)"]
[]
[]
[]
[]
[null,"Nog geen keuze gemaakt"]
[null,"Koffie 3 X bediend",{"$nulls":5},"€ ",2.9]
[null,"Koffie 3 X bediend met koekjes",{"$nulls":5},"€ ",3.9]
[null,"Koffie 3 X bediend met pralines",{"$nulls":5},"€ ",4.4]
[]
["Alle drank na het dessertbuffet komt op één rekening en wordt door de organisator van het feest betaald",{"$nulls":14},"één rekening"]
["Elke gast die na het dessertbuffet een drankje bestelt rekent direct af aan de bar",{"$nulls":14},"direct afrekenen"]
["Forfait voor drank naar believen (alle bieren en frisdranken van de drankkaart in de zaal) na het buffet. pp: ",{"$nulls":13},{"v":18.2,"d":"18.20"},{"v":18.2,"d":"18.20"},"alletwee de prijzen nodig!"]
["Indien  er geen volwaardige maaltijd wordt genomen, dienen er minstens 4 belegde broodjes genomen te worden en verhoogt het drankforfait tot € 28,00 ",{"$nulls":14},{"v":33.8,"d":"33.80"}]
["'s middags tot 21 u - 's avonds onbeperkt. Let op! Artikel 8 van de verkoopsvoorwaarden (zie laatste bladzijde) kan hier van toepassing zijn !!!!"]
[]
["Neem contact op met de zaakvoerder op tel nr 0475/618058",{"$nulls":14},"x"]
["om hier zeker geen misverstanden over te hebben!"]
[]
[]
["Verbruik van DJ  ten laste van de klant"]
[]
["Voor onze vegetarische klanten:"]
[]
["- Voor onze vegetarische klanten bereiden wij graag een aparte schotel. "]
["Wij vragen wel met aandrang om op voorhand te melden als er vegetariërs zijn."]
["Zij eten mee aan de prijs van de rest van de groep."]
[]
[]
[]
[]
["Mensen met een speciaal dieet:"]
[]
["Wij houden rekening met speciale wensen van mensen die een dieet volgen, "]
["maar alleen indien op voorhand gemeld. "]
[]
["Halal kan ook, onder toezicht van een moslim bereid."]
[]
["ja"]
["nee"]
{"$rows_empty":22}
[{"$nulls":13},"       "]
{"$rows_empty":89}
["Exclusiviteit voor beide zalen:",{"$nulls":4},750]
{"$rows_empty":77}
["Late night snacks",null,null,"overal op regel 300"]
["Croque uit het vuistje",{"$nulls":3},2.8]
["Pizza Margherita",{"$nulls":3},4.5]
["Belegde broodjes (2 pp)",{"$nulls":3},4.5]
["Braadworst",{"$nulls":3},3]
["Scampi (3pp) Nantua met farfale en broccoli",{"$nulls":3},4.5]
{"$rows_empty":74}
["Betaling op de dag zelf (cash of bancontact), u bekomt 2% korting op het totaal"]
["Storting op BE 48 4631 1391 2127 min. 7 dagen voor het feest, 2% korting"]
["Betaling na het feest. Gelieve 40 % voorschot te storten op BE48 4631 1391 2127. Geen korting."]
{"$rows_empty":117}
["Geen voorkeur"]
["Cd’s van het Katelijnenhof"]
["Eigen Cd's"]
["Joe 60&70",1]
["Joe 80&90",2]
["Joe easy",3]
["Joe lage landen",4]
["MNM",5]
["MNM hits",6]
["Nostalgie",7]
["Q-foute radio",8]
["Q-Max hits",9]
["Q Music",10]
["Radio 2 Bene Bene",11]
["Radio 2 West-Vlaanderen",12]
["Radio 1",13]
["Studio Brussel",14]
["Studio Brussel de tijdloze",15]
["Top Radio",16]
["Top Versuz Radio",17]
["NRJ",18]
["Klara",19]
["Radio Bingo",20]
["Joe",40]

{"sheet":"Algemene verkoopsvoorwaarden","index":2,"n_rows":38,"n_cols":1,"rows_kept":38}
["Algemene verkoopsvoorwaarden vanaf 01/11/2022:"]
[]
["1) Onze facturen zijn contant te betalen bij levering van de goederen, dit is de dag van het event. Bijgevolg zal in geval van laattijdige betaling van rechtswege en zonder voorafgaande ingebrekestelling een intrest aangerekend worden van 12% per jaar op de bedragen, verschuldigd acht dagen na de vervaldag van de facturen. Tevens zal bij gebrek aan betaling na aanmaning bij gewone brief, het verschuldigde bedrag van rechtswege verhoogd worden met een forfaitaire vergoeding van 12 % met een minimum van € 50  voor bijkomende administratieve kosten, debiteurenbewaking en commerciële stoornissen. Wij behouden ons het recht voor op elk moment de leveringen te staken. Elke klacht over de kwaliteit van de geleverde goederen moet uiterlijk 24 uur na de levering worden overgemaakt. "]
["Klachten in verband met facturatie kunnen slechts in aanmerking worden genomen zo zij binnen de acht dagen na ontvangst van de goederen bij aangetekende brief worden meegedeeld. In geval van betwisting zijn uitsluitend de rechtbanken van Kortrijk bevoegd. De leveringen  geschieden op risico van de bestemmeling. Er wordt uitdrukkelijk overeengekomen dat de klant door het plaatsen van een bestelling onze algemene verkoopsvoorwaarden erkent. Elke wijziging hieraan moet voorafgaandelijk in een schriftelijk akkoord worden vastgelegd."]
[]
["2) Annulatie dient schriftelijk en gedateerd te geschieden. "]
["In geval van annulatie minder dan 60 dagen voor de activiteit blijft het voorschot eigendom van het Katelijnenhof. Voor annulatie minder dan 10 dagen voor de activiteit is de klant in alle gevallen verplicht 35 % van de reservatie waarde van de gehele manifestatie te vergoeden. Bij annulatie minder dan 5 dagen voor  de activiteit is de klant in alle gevallen verplicht de reservatie waarde van de gehele manifestatie te vergoeden."]
[]
["3) Iedere levering van dranken, voedingswaren of diensten in de  zalen is uitsluitend voorbehouden aan het Katelijnenhof, tenzij er een andere schriftelijke overeenkomst is."]
[]
["4) De klant is eraan gehouden voor iedere dansavond met groot orkest een aanvraag tot toelating in te dienen bij SABAM, Rijselsestraat 51, 8500 Kortrijk, Tel : 056/210738 en alle kosten voortvloeiend uit deze aanvraag te dragen.  Voor een gewone disc-jockey betalen wij jaarlijks een vaste bijdrage. Het verbruik (drank en voeding) van de DJ is ten laste van de klant. Gelet op de nieuwe geluidsnormen, van kracht op 01/01/2013, moet de klant de DJ of elke andere persoon of toestel dat  geluid produceert verplichten zich aan deze normen te houden. De toelating voor onze zaal is – maximaal geluidsniveau > 85 dB(A) LAeq,15min en ≤ 95 dB(A) LAeq,15min. Dit is ruim voldoende. Alle boetes ten gevolge een overschrijding van deze voorwaarde zijn ten laste van de klant. Er wordt een professionele houding van elke DJ of geluidstechnicus verwacht."]
["Het is niet toegestaan om muziek af te spelen via B2C diensten zoals Spotify, Deezer, Youtube… Dit geldt voor elke horecazaak, winkel enz… Doet de klant of zijn DJ dat toch en er volgt een boete, dan is deze ten laste van de klant."]
[]
["5) Alle door de klant meegebrachte materiaal dient door de klant te worden verzekerd en direct na het beëindigen van de manifestatie te worden verwijderd uit de zaal. Het Katelijnenhof behoudt het recht de leverancier te aanvaarden en voorschriften te geven om de lokalen ongeschonden te behouden. Het is strikt verboden om versieringen aan de muren of plafonds te bevestigen met duimspijkers of kleefband ! Bij beschadigingen van een deel van de muur wordt het geheel als beschadigd beschouwd."]
[]
["6) Het gebruik van de zaal is strikt beperkt tot de in deze overeenkomst vastgestelde functie. Iedere wijziging in de voorheen verklaarde bestemming brengt automatisch het recht tot prijsherziening met zich mee."]
[]
["7) Het gebruik van de zaal is gratis van zodra het verbruik hoger ligt dan € 1250. Indien het verbruik lager ligt, wordt het factuurbedrag opgetrokken tot € 1250. Indien uw feest cash (max € 3000) of met bancontact betaald wordt op de dag zelf krijgt u een korting van 2 % op de gehele factuur. Voor traiteurdienst gelden andere kortingsregels."]
[]
["8) Sluitingsuren zaal:"]
[]
["In geval van een event dat start ’s morgens start tussen 7u en 10u59 (vb. ontbijt)"]
["Event kan maximaal 6 uur duren."]
[]
["In geval van een event dat start op de middag start tussen 11u en 13u59"]
["De bar sluit om 18u00, de zaal sluit om 18u30."]
[]
["In geval van een event dat start in de namiddag start tussen 14u en 17u59 (vb. babyborrel)"]
["Event kan maximaal 6 uur duren."]
[]
["In geval van een event dat start ’s avonds start vanaf 18u"]
["De bar sluit om 2u30, de zaal sluit om 3u."]
[]
["Indien het event toch langer uitloopt dan het sluitingsuur wordt per begonnen uur een toeslag van € 125,00 (btw incl.) aangerekend. Geen enkel drankenforfait geldt dan nog."]
[]
["9) De klant is verantwoordelijk voor de goede orde in en rond de feestzaal. Schade veroorzaakt door een der aanwezigen kan verhaald worden op deze persoon maar als deze om gelijk welke reden de schade niet kan vergoeden (vb: te weinig financiële middelen of de veroorzaker is onbekend) kan deze schade eveneens ondeelbaar worden verhaald op de klant , zijnde de persoon die het feest heeft besteld. "]
[]
["10) Energietoeslag. De energieprijzen zijn momenteel op hol geslagen. Het kan zijn dat wij genoodzaakt zijn een energietoeslag voor het gebruik van de zaal aan te rekenen. U wordt in voorkomend geval op voorhand verwittigd en mag uw feest kosteloos annuleren indien u deze niet wenst te betalen."]

{"sheet":"Reservatievoorstel","index":3,"n_rows":50,"n_cols":18,"rows_kept":50,"merged":[[2,14,3,14],[2,15,3,15],[2,16,3,16],[2,17,3,17],[9,12,9,13],[12,9,12,11],[12,12,12,16],[14,9,14,17],[15,4,15,8],[16,9,16,17],[23,14,23,17],[25,9,26,17],[31,0,31,2],[34,0,35,7],[39,0,43,8]]}
[null,null,{"$f":"\"Reservatievoorstel. \"&matrixen!B1","v":"Reservatievoorstel. Prijzen geldig tot 31/03/2023"},{"$nulls":7},"Uitsplitsing per BTW tarief.",{"$nulls":4},"Totaalprijs per vol:",{"$f":"E10","v":{"v":21.5,"d":"21.50"}}]
["Naam Klant:",null,{"$f":"'selecteer hier uw dessertbuffet'!F51","v":0},{"$nulls":3},"Katelijnenhof",{"$nulls":8},{"$f":"IF(Q2>0,\"Prijs drankforfait na de maaltijd, 50/50 aan 6/21% BTW:\",\"\")","v":""},{"$f":"'selecteer hier uw dessertbuffet'!D37","v":{"v":0,"d":"0.00"}}]
["Adres:",null,{"$f":"'selecteer hier uw dessertbuffet'!F52","v":0},{"$nulls":3},"Heirweg 172",{"$nulls":5},"Menu",null,"Dep. B",{"$f":"IF(Q2>0,\"Drank- forfait:\",\"\")","v":""},"Totaal aan 21%","Dep. A"]
["Stad:",null,{"$f":"'selecteer hier uw dessertbuffet'!F53","v":0},{"$nulls":3},"8800 Roeselare",{"$nulls":3},"aantal","totaal:","deel 12%","deel21%"]
["Tel nr:",null,{"$f":"'selecteer hier uw dessertbuffet'!F54","v":0},{"$nulls":3},"info@katelijnenhof.be",null,null,"Vol",{"$f":"D10","v":0},{"$f":"Q1-Q2","v":{"v":21.5,"d":"21.50"}},{"$f":"ROUND(L5*0.65,2)","v":13.98},{"$f":"L5-M5","v":7.52},{"$f":"K5*M5","v":{"v":0,"d":"0.00"}},{"$f":"Q2","v":{"v":0,"d":"0.00"}},{"$f":"N5+P5","v":7.52},{"$f":"K5*Q5","v":{"v":0,"d":"0.00"}}]
["email:",{"$f":"'selecteer hier uw dessertbuffet'!F55","v":0},{"$nulls":4},"Gsm 0475/618058",null,null,"JR 1/2",{"$f":"D11","v":0},{"$f":"E11-P6","v":10.75},{"$f":"ROUND(L6*0.65,2)","v":6.99},{"$f":"L6-M6","v":3.76},{"$f":"K6*M6","v":{"v":0,"d":"0.00"}},{"$f":"ROUND(Q2/2,2)","v":{"v":0,"d":"0.00"}},{"$f":"N6+P6","v":3.76},{"$f":"K6*Q6","v":{"v":0,"d":"0.00"}}]
[{"$f":"'selecteer hier uw dessertbuffet'!E56","v":"reden feest:"},{"$f":"'selecteer hier uw dessertbuffet'!F56","v":0},{"$nulls":5},"aankomst om:",{"$f":"'selecteer hier uw dessertbuffet'!F49","v":0},"JR 1/3",{"$f":"D12","v":0},{"$f":"E12-P7","v":7.17},{"$f":"ROUND(L7*0.65,2)","v":4.66},{"$f":"L7-M7","v":2.51},{"$f":"K7*M7","v":{"v":0,"d":"0.00"}},{"$f":"ROUND(Q2/3,2)","v":{"v":0,"d":"0.00"}},{"$f":"N7+P7","v":2.51},{"$f":"K7*Q7","v":{"v":0,"d":"0.00"}}]
["Datum activiteit:",null,{"$f":"'selecteer hier uw dessertbuffet'!F43","v":"00:00:00"},{"$nulls":4},"aan tafel om:",{"$f":"'selecteer hier uw dessertbuffet'!F50","v":0},"JR gratis",{"$f":"D13","v":0},{"$f":"E13","v":"0,00"},{"$f":"L8*0.65","v":0},{"$f":"L8*0.35","v":{"v":0,"d":"0.00"}},{"$f":"K8*M8","v":{"v":0,"d":"0.00"}},null,{"$f":"N8+P8","v":0},{"$f":"K8*Q8","v":{"v":0,"d":"0.00"}}]
["Totaal aantal personen:",null,null,{"$f":"D10+D11+D12+D13","v":0},"prijs:",null,null,"raming totaal 1:",{"$f":"D10*E10+D11*E11+D12*E12+D13*E13","v":{"v":0,"d":"€ 0.00"}},null,null,"Voorschot reeds betaald:",null,null,{"$f":"ROUND(M9/98*100,2)","v":0},{"$f":"IF(Q9>0,\"Huur zaal/exclusiviteit: \",\"\")","v":""},{"$f":"I11+I12","v":{"v":0,"d":"0.00"}}]
[null,null,"volwassenen:",{"$f":"'selecteer hier uw dessertbuffet'!F45","v":0},{"$f":"'selecteer hier uw dessertbuffet'!D7","v":{"v":21.5,"d":"21.50"}},null,null,"ander rekenblad:",{"$f":"'selecteer hier uw dessertbuffet'!F58","v":{"v":0,"d":"€ 0.00"}},null,null,"Gestort / betaald op:"]
[null,null,"JR 1/2 (6 t.e.m. 11) :",{"$f":"'selecteer hier uw dessertbuffet'!F46","v":0},{"$f":"'selecteer hier uw dessertbuffet'!J7","v":10.75},null,null,"huur zaal:",{"$f":"IF(D9=0,0,IF((I9+I10)<matrixen!E3,matrixen!E3-I9-I10,0))","v":{"v":0,"d":"€ 0.00"}},null,null,{"$f":"IF(O9>0,\"Voorschot uitgesplitst:\",\"\")","v":""},{"$f":"IF(O9>0,\" € \"&ROUND(O9*0.65,2) & \" x 12% => Dep. B  en € \" & ROUND(O9*0.35,2) & \" x 21% => Dep. A.\",\"\")","v":""}]
[null,null,"JR 1/3 (3 t.e.m. 5) :",{"$f":"'selecteer hier uw dessertbuffet'!F47","v":0},{"$f":"'selecteer hier uw dessertbuffet'!H7","v":7.17},null,null,{"$f":"IF(I12>0,\"U koos voor exclusiviteit:\",\"\")","v":""},{"$f":"'selecteer hier uw dessertbuffet'!L37","v":{"v":0,"d":"€ 0.00"}},{"$nulls":3},"Voorschot wordt gesplitst over:",{"$f":"IF(O9>0,ROUNDUP((O9+1)/L5,0),0)","v":0}," volwassenen"]
[null,null,"JR gratis (0 t.e.m. 2) :",{"$f":"'selecteer hier uw dessertbuffet'!F48","v":0},{"$f":"'selecteer hier uw dessertbuffet'!F7","v":"0,00"},null,null,"raming totaal:",{"$f":"I11+I10+I9+I12","v":{"v":0,"d":"€ 0.00"}},"Input GKS:",null,null,{"$f":"IF(O9*0.65 >N12*M5,\"ONMOGELIJK U bekomt negatieve waarden.\",\"\")","v":""}]
[{"$nulls":7},"raming te betalen indien contante betaling  (max € 3000 cash):",{"$f":"'selecteer hier uw dessertbuffet'!L62","v":{"v":0,"d":"€ 0.00"}},{"$f":"N12","v":0},"vol","x",{"$f":"IFERROR(M5-ROUND(O9*0.65/N12,2),\"\")","v":""},{"v":0.12,"d":"12%"},{"$f":"IFERROR(J14*M14,\"\")","v":""},"Dep. B","Verwerking voorschot"]
[{"$nulls":7},"Voorkeur tafelschikking:",null,{"$f":"IFERROR( \" Er wordt € \" & ROUND(O9*0.65/N12,2) & \" minder geboekt bij \" & N12 & \" personen omdat dit reeds als voorschot werd geboekt.\",\"\")","v":""}]
[{"$nulls":4},{"$f":"'selecteer hier uw dessertbuffet'!K57","v":"geen voorkeur"},{"$nulls":4},{"$f":"N12","v":0},"vol","x",{"$f":"IFERROR(Q5-ROUND(O9*0.35/N12,2),\"\")","v":""},{"v":0.21,"d":"21%"},{"$f":"IFERROR(J16*M16,\"\")","v":""},"Dep. A","Verwerking voorschot"]
[{"$nulls":8},{"$f":"'selecteer hier uw dessertbuffet'!B20","v":"De gast die niet inbegrepen aperitief bestelt betaalt deze zelf (vb: sterke drank)"},{"$f":"IFERROR( \" Er wordt € \" & ROUND(O9*0.35/N12,2) & \" minder geboekt bij \" & N12 & \" personen omdat dit reeds als voorschot werd geboekt.\",\"\")","v":""}]
[{"$nulls":8},{"$f":"IF(M10>0,\" Uw voorschot van € \" & O9 & \" wordt nog in mindering gebracht\",\"\")","v":""},{"$f":"K5-J14","v":0},{"$f":"K14","v":"vol"},"x",{"$f":"M5","v":13.98},{"$f":"N14","v":{"v":0.12,"d":"12%"}},{"$f":"J18*M18","v":{"v":0,"d":"0.00"}},"Dep. B"]
[{"$f":"'selecteer hier uw dessertbuffet'!H44","v":""},{"$nulls":8},{"$f":"K5-J16","v":0},{"$f":"K16","v":"vol"},"x",{"$f":"Q5","v":7.52},{"v":0.21,"d":"21%"},{"v":0,"d":"0.00"},"Dep. A"]
[{"$f":"'selecteer hier uw dessertbuffet'!H45","v":""},{"$nulls":8},{"$f":"K6","v":0},{"$f":"J6","v":"JR 1/2"},"x",{"$f":"M6","v":6.99},{"$f":"N14","v":{"v":0.12,"d":"12%"}},{"v":0,"d":"0.00"},"Dep. B"]
[{"$f":"'selecteer hier uw dessertbuffet'!H46","v":""},{"$nulls":8},{"$f":"K6","v":0},{"$f":"J6","v":"JR 1/2"},"x",{"$f":"Q6","v":3.76},{"v":0.21,"d":"21%"},{"v":0,"d":"0.00"},"Dep. A"]
[{"$f":"'selecteer hier uw dessertbuffet'!H47","v":""},{"$nulls":8},{"$f":"K7","v":0},{"$f":"J7","v":"JR 1/3"},"x",{"$f":"M7","v":4.66},{"$f":"N14","v":{"v":0.12,"d":"12%"}},{"v":0,"d":"0.00"},"Dep. B"]
[{"$f":"'selecteer hier uw dessertbuffet'!H48","v":""},{"$nulls":7},{"$f":"'selecteer hier uw dessertbuffet'!G40","v":"Keuze achtergrondmuziek:"},{"$f":"K7","v":0},{"$f":"J7","v":"JR 1/3"},"x",{"$f":"Q7","v":2.51},{"v":0.21,"d":"21%"},{"v":0,"d":"0.00"},"Dep. A"]
[{"$f":"'selecteer hier uw dessertbuffet'!H49","v":""},{"$nulls":7},{"$f":"'selecteer hier uw dessertbuffet'!H40","v":"Geen voorkeur"},{"$f":"IF(L24>0,\"1\",0)","v":0},{"$f":"IF(L24>0,\"x\",\"\")","v":""},{"$f":"Q9","v":{"v":0,"d":"0.00"}},{"$f":"IF(L24>0,\"21%\",\"\")","v":""},{"$f":"IF(L24>0,\"Dep. A\",\"\")","v":""},{"$f":"P9","v":""}]
[{"$f":"'selecteer hier uw dessertbuffet'!H50","v":""},{"$nulls":7},{"$f":"VLOOKUP(I24,matrixen!A500:B524,2,FALSE)","v":0},null,"Totale boekwaarde:",{"$f":"SUM(O14:O23)+L24+O9+I10","v":{"v":0,"d":"0.00"}},{"$f":"IF(SUM(O14:O23)+L24+O9+I10 <>I13,\" Er is iets fout met de splitsingstabel\",\"\")","v":""}]
[{"$f":"'selecteer hier uw dessertbuffet'!H51&\" met o.a.:\"","v":"Uitgebreid dessertbuffet  (niet voorafgegaan door een maaltijd) met o.a.:"},{"$nulls":8},{"$f":"\"De eventuele korting contant van 2 %, in het huidig voorstel is dit € \" &ROUND( I13-I14,2) & \" is nog niet in bovenstaande splitsing verwerkt.\"","v":"De eventuele korting contant van 2 %, in het huidig voorstel is dit € 0 is nog niet in bovenstaande splitsing verwerkt."}]
[{"$f":"'selecteer hier uw dessertbuffet'!F31","v":"vers fruit, verschillende soorten sorbet, chocolademousse, roomijs"}]
[{"$f":"'selecteer hier uw dessertbuffet'!F32","v":"variatie van miserable, javanais, pasteis de nata, roomsoes, speculoostaart,"},{"$nulls":9},{"$f":"IF(K31<>\"\",\"Detail van het aperitief:\",\"\")","v":""},null,null,{"$f":"'selecteer hier uw dessertbuffet'!F13 & \" \" & 'selecteer hier uw dessertbuffet'!F14","v":"0 0"}]
[{"$f":"'selecteer hier uw dessertbuffet'!F33","v":"De samenstelling van het buffet kan verschillen, naargelang de grootte van de groep"},{"$nulls":12},{"$f":"'selecteer hier uw dessertbuffet'!F15","v":0}]
[{"$f":"'selecteer hier uw dessertbuffet'!F34","v":"assortiment van mini-bavarois (framboos-passie-zwarte woud-pistache-chocolade praliné)"},{"$nulls":12},{"$f":"'selecteer hier uw dessertbuffet'!F16 & \" \" & 'selecteer hier uw dessertbuffet'!F17","v":"0 0"}]
[{"$f":"'selecteer hier uw dessertbuffet'!F35","v":0},{"$nulls":9},{"$f":"A19","v":""}]
[{"$f":"'selecteer hier uw dessertbuffet'!H52","v":""},{"$nulls":9},{"$f":"'selecteer hier uw dessertbuffet'!G13","v":0}]
[{"$nulls":10},{"$f":"'selecteer hier uw dessertbuffet'!G14","v":0}]
[{"$f":"'selecteer hier uw dessertbuffet'!H53","v":"Alle drank na het dessertbuffet komt op één rekening en wordt door de organisator van het feest betaald"},{"$nulls":9},{"$f":"'selecteer hier uw dessertbuffet'!G15","v":0}]
[{"$f":"'selecteer hier uw dessertbuffet'!K58","v":"Betaling op de dag zelf (cash of bancontact), u bekomt 2% korting op het totaal"},{"$nulls":9},{"$f":"'selecteer hier uw dessertbuffet'!G16","v":0}]
[{"$nulls":10},{"$f":"'selecteer hier uw dessertbuffet'!G17","v":0}]
[{"$f":"'selecteer hier uw dessertbuffet'!B37","v":"Alle drank na het dessertbuffet komt op één rekening en wordt door de organisator van het feest betaald"},{"$nulls":9},{"$f":"'selecteer hier uw dessertbuffet'!G18","v":0}]
[null,"Feest met discobar: ",{"$f":"'selecteer hier uw dessertbuffet'!G39","v":"nee"},{"$nulls":3},{"$f":"'selecteer hier uw dessertbuffet'!H39","v":"Allergenen:"},{"$f":"'selecteer hier uw dessertbuffet'!I39","v":"nee"},null,null,{"$f":"'selecteer hier uw dessertbuffet'!G19","v":0}]
[{"$f":"'selecteer hier uw dessertbuffet'!E57","v":"Opmerking:"},{"$nulls":5},"Factuur: ",{"$f":"'selecteer hier uw dessertbuffet'!K59","v":"nee"},null,null,{"$f":"'selecteer hier uw dessertbuffet'!G20","v":0}]
[{"$f":"'selecteer hier uw dessertbuffet'!F57","v":0},{"$nulls":9},{"$f":"'selecteer hier uw dessertbuffet'!G21","v":0}]
[{"$nulls":10},{"$f":"'selecteer hier uw dessertbuffet'!G22","v":0}]
[{"$nulls":10},{"$f":"'selecteer hier uw dessertbuffet'!G23","v":0}]
[{"$nulls":10},{"$f":"'selecteer hier uw dessertbuffet'!G24","v":""}]
[{"$nulls":10},{"$f":"'selecteer hier uw dessertbuffet'!H25","v":0}]
["Het juiste aantal EN de gewenste tafelschikking moet ons meegedeeld worden ten laatste op: ",{"$nulls":7},{"$f":"C8-9","v":-9},null,{"$f":"'selecteer hier uw dessertbuffet'!H26","v":0}]
["Wijzigingen na deze datum van aantal en/of tafelschikking hebben prijsherzieningen tot gevolg!",{"$nulls":9},{"$f":"IF(OR('selecteer hier uw dessertbuffet'!B49<>\"\",'selecteer hier uw dessertbuffet'!B50<>\"\",'selecteer hier uw dessertbuffet'!B51<>\"\",'selecteer hier uw dessertbuffet'!B52<>\"\"),\"U koos volgende late night snack(s)\",\"\")","v":""}]
["Dit aantal geldt als minimum voor facturatie. Verdere verkoopsvoorwaarden op een ander werkblad. ",{"$nulls":9},{"$f":"'selecteer hier uw dessertbuffet'!B49","v":0}]
["Vergeet ze niet te lezen.",{"$nulls":6},"Gaat u akkoord met de algemene verkoopsvoorwaarden?",{"$f":"'selecteer hier uw dessertbuffet'!K56","v":"ja"},null,{"$f":"'selecteer hier uw dessertbuffet'!B50","v":0}]
["Handtekening der beide partijen voor akkoord:",{"$nulls":9},{"$f":"'selecteer hier uw dessertbuffet'!B51","v":0}]
[null,null,"De klant",{"$nulls":4},"Het Katelijnenhof",null,null,{"$f":"'selecteer hier uw dessertbuffet'!B52","v":0}]